[Event "Polish Youth Ekstraliga 2022"]
[Site "Lublin"]
[Date "2022.06.28"]
[Round "4.18"]
[White "Szczotka, Klara"]
[Black "Jaros, Emilia"]
[Result "1/2-1/2"]
[ECO "E26"]
[WhiteElo "1863"]
[BlackElo "1366"]
[Annotator "NA RC"]
[PlyCount "96"]
[EventDate "2022.06.24"]
[EventType "team-tourn"]
[EventCountry "POL"]
[SourceTitle "playchess.com"]
[Source "ChessBase"]
[SourceQuality "1"]
[TimeControl "40/5400+30:1800+30"]

1. d4 {[%emt 0:00:03]} Nf6 {[%emt 0:00:33]} 2. c4 {[%emt 0:00:09]} e6 {[%emt 0:00:49]} 3. Nc3 {[%emt 0:00:13]} Bb4 {[%emt 0:00:48]} 4. e3 {[%emt 0:00:36]} c5 {[%emt 0:01:29]} 5. a3 {[%emt 0:04:31]} Bxc3+ {[%emt 0:03:30]} 6. bxc3 {[%emt 0:00:04]} b6 {[%emt 0:01:42]} 7. Nf3 {[%emt 0:01:00]} Bb7 {[%emt 0:02:46]} 8. Bd3 {[%emt 0:00:27]} d6 {[%emt 0:02:26]} 9. O-O {[%emt 0:01:51]} Nbd7 {[%emt 0:01:43]} 10. Qc2 {[%emt 0:01:53]} h6 {[%emt 0:02:27]} 11. e4 {[%emt 0:02:41]} e5 {[%emt 0:02:41]} 12. Nh4 {[%emt 0:04:51]} g6 {[%emt 0:07:49]} 13. d5 {[%emt 0:06:14]} Nh5 {[%emt 0:03:40]} 14. g3 {[%emt 0:02:44]} Qe7 {[%emt 0:02:29]} 15. Be2 {[%emt 0:08:07]} Ng7 {[%emt 0:03:56]} 16. Be3 {[%emt 0:02:35]} g5 {[%emt 0:06:18]} 17. Ng2 {[%emt 0:06:52]} Nf6 {[%emt 0:06:37]} 18. h4 {[%emt 0:02:27]} ({Better is} 18. a4) 18... Nh7 {[%emt 0:08:17]} 19. a4 {[%emt 0:01:03]} O-O {[%emt 0:05:26]} 20. a5 {[%emt 0:01:16]} f5 {[%emt 0:02:41]} 21. exf5 {[%emt 0:00:49]} Nxf5 {[%emt 0:01:43]} 22. Bd3 {[%emt 0:00:37]} Nxe3 {[%emt 0:02:01]} 23. Nxe3 {[%emt 0:00:13]} Bc8 {[%emt 0:03:35]} 24. Bxh7+ {[%emt 0:03:16]} Qxh7 {[%emt 0:01:02]} 25. Qxh7+ {[%emt 0:00:04]} Kxh7 {[%emt 0:00:11]} 26. hxg5 {[%emt 0:00:10]} hxg5 {[%emt 0:07:17]} 27. axb6 {[%emt 0:00:15]} a5 $16 {[%emt 0:00:42]} 28. Rfb1 {[%emt 0:00:23]} Rf7 {[%emt 0:02:41]} 29. Ra4 {[%emt 0:08:15]} Rb7 {[%emt 0:01:37]} 30. Kg2 {[%emt 0:03:53]} Bd7 {[%emt 0:03:52]} 31. Ra2 {[%emt 0:00:59]} Kg6 {[%emt 0:01:04]} 32. Nf1 {[%emt 0:04:27]} a4 {[%emt 0:00:47]} 33. Ne3 {[%emt 0:09:53]} Ra6 {[%emt 0:02:04]} 34. Rab2 {[%emt 0:00:17]} Bf5 {[%emt 0:01:02]} 35. Nxf5 {[%emt 0:00:57]} Kxf5 {[%emt 0:00:31]} 36. Kf3 {[%emt 0:00:29]} g4+ {[%emt 0:01:55]} 37. Ke3 {[%emt 0:00:06]} Kg5 {[%emt 0:02:30]} 38. Ke4 {[%emt 0:01:02]} Kg6 {[%emt 0:00:57]} 39. Ra2 {[%emt 0:03:45]} Kg5 {[%emt 0:01:19]} 40. Kd3 {[%emt 0:00:00]} Kf5 {[%emt 0:00:00]} 41. Ra3 {[%emt 0:03:15]} Ra5 {[%emt 0:08:15]} 42. Rb5 {[%emt 0:00:47]} e4+ {[%emt 0:00:39]} 43. Ke3 {[%emt 0:02:21]} Ra6 {[%emt 0:05:38]} 44. Rb1 {[%emt 0:02:34]} Rbxb6 {[%emt 0:03:36]} 45. Rxb6 {[%emt 0:06:30]} Rxb6 {[%emt 0:03:48]} 46. Rxa4 {[%emt 0:00:03]} Rb3 {[%emt 0:00:35]} 47. Kd2 {[%emt 0:00:26]} Rb2+ {[%emt 0:00:19]} 48. Ke3 {[%emt 0:00:06]} Rb3 {[%emt 0:01:00]} 1/2-1/2

[Event "Polish Youth Ekstraliga 2022"]
[Site "Lublin"]
[Date "2022.06.28"]
[Round "4.19"]
[White "Kazmierowski, Tymon"]
[Black "Dzida, Kamil"]
[Result "0-1"]
[ECO "B33"]
[WhiteElo "2020"]
[BlackElo "2294"]
[Annotator "TA"]
[PlyCount "60"]
[EventDate "2022.06.24"]
[EventType "team-tourn"]
[EventCountry "POL"]
[SourceTitle "playchess.com"]
[Source "ChessBase"]
[SourceQuality "1"]
[TimeControl "40/5400+30:1800+30"]

{[%evp 25,60,13,20,6,18,-14,-19,-34,-35,-29,-10,-19,-18,-21,14,0,0,0,0,-23,-36,-25,-33,-54,52,45,38,36,185,68,67,-469,-469,-804,-797,-654,-632]} 1. e4 {[%emt 0:00:02]} c5 {[%emt 0:00:06]} 2. Nf3 {[%emt 0:00:05]} Nc6 {[%emt 0:00:10]} 3. d4 {[%emt 0:00:08]} cxd4 {[%emt 0:00:06]} 4. Nxd4 {[%emt 0:00:05]} Nf6 {[%emt 0:00:05]} 5. Nc3 {[%emt 0:00:09]} e5 {[%emt 0:00:05]} 6. Ndb5 {[%emt 0:00:09]} d6 {[%emt 0:00:06]} 7. Bg5 {[%emt 0:01:02]} a6 {[%emt 0:00:06]} 8. Na3 {[%emt 0:00:04]} b5 {[%emt 0:00:05]} 9. Nd5 {[%emt 0:00:10]} Be7 {[%emt 0:00:06][%cal Bf8e7,Be7f6,Bf6g5,Bg5e3,Be3a7][%mdl 32]} 10. Bxf6 {[%emt 0:00:16]} Bxf6 {[%emt 0:00:07]} 11. c3 {[%emt 0:01:26]} Bg5 {[%emt 0:00:06]} 12. Nc2 {[%emt 0:00:25]} Ne7 {[%emt 0:00:05]} 13. Nce3 {[%emt 0:05:15]} Bb7 {[%emt 0:00:01]} 14. Nxe7 {[%emt 0:04:08] Hoping for N7f5. B33: Sicilian: Pelikan and Sveshnikov Variations.} Bxe3 {[%emt 0:00:10] A strong pair of Bishops.} 15. Nd5 {[%emt 0:17:51]} (15. Nf5 $5 {[%cal Rf5d6]} Bc5 16. Nxg7+ Kf8 17. Nf5 $11) 15... Ba7 {[%emt 0:04:41]} 16. g3 {[%emt 0:04:02] The position is equal.} O-O {[%emt 0:02:59][%cal Bh8f8,Bf8f5,Bf5f3][%mdl 32] [#]} 17. Bg2 $146 {[%emt 0:00:40]} ({Predecessor:} 17. Bh3 g6 18. Qb3 Kh8 19. a4 Rb8 20. O-O bxa4 21. Qxa4 f5 22. Ra2 Rf7 23. Bg2 {0-1 (37) Herms Agullo,J (2215)-Gomez Jurado,L (2280) Spain 1997}) 17... f5 {[%emt 0:08:48]} 18. exf5 {[%emt 0:05:51]} Rxf5 {[%emt 0:00:06]} 19. O-O {[%emt 0:00:05]} Qf8 {[%emt 0:00:38][%cal Ra7f2]} 20. Qd2 {[%emt 0:02:56]} Qf7 {[%emt 0:04:28]} 21. Be4 {[%emt 0:06:30]} Rf3 {[%emt 0:04:17][%cal Oa8f8]} 22. Rae1 {[%emt 0:17:30] [#]} Rf8 $1 {[%emt 0:00:36]} 23. Re2 {[%emt 0:02:58] [#]} Kh8 $1 $36 {[%emt 0:01:37][%cal Ob7c8][%mdl 2048] Black is pushing.} 24. Kg2 {[%emt 0:07:17] [#]} Bc8 {[%emt 0:03:14] [#]} 25. Nf4 $1 $14 {[%emt 0:07:30]} Rxf4 {[%emt 0:05:15]} 26. gxf4 {[%emt 0:00:06]} Qe6 {[%emt 0:02:53]} (26... Be6 $14) 27. f5 {[%emt 0:02:39]} ({White should try} 27. fxe5 $18 dxe5 28. Kh1) 27... Rxf5 {[%emt 0:01:31] aiming for ...Rh5.} 28. Bxf5 {[%emt 0:01:38][%mdl 8192]} (28. Qd5 $14 {keeps the upper hand.}) 28... Qxf5 $19 {[%emt 0:00:02] Black is clearly winning.} 29. Re3 {[%emt 0:11:20]} (29. Kg1 {gets mated.} Qg4+ 30. Kh1 Qf3+ 31. Kg1 Bb7) (29. Rh1 $142 Bb7+ 30. Kf1 Bxh1 31. Qxd6) 29... Qg5+ {[%emt 0:00:02][%mdl 64] Pin, Double Attack} 30. Kh1 {[%emt 0:00:07]} Bb7+ {[%emt 0:00:03] Weighted Error Value: White=0.85/Black=0.29 (precise)} 0-1

[Event "Polish Youth Ekstraliga 2022"]
[Site "Lublin"]
[Date "2022.06.28"]
[Round "4.20"]
[White "Koziorowicz, Michal"]
[Black "Grzadka, Artur"]
[Result "1-0"]
[ECO "C00"]
[WhiteElo "2231"]
[BlackElo "1718"]
[Annotator "RC"]
[PlyCount "53"]
[EventDate "2022.06.24"]
[EventType "team-tourn"]
[EventCountry "POL"]
[SourceTitle "playchess.com"]
[Source "ChessBase"]
[SourceQuality "1"]
[TimeControl "40/5400+30:1800+30"]

1. e4 {[%emt 0:00:09]} e6 {[%emt 0:00:06]} 2. d3 {[%emt 0:01:30]} d5 {[%emt 0:01:05]} 3. Nd2 {[%emt 0:00:25]} Nf6 {[%emt 0:04:52]} 4. Ngf3 {[%emt 0:00:13]} Be7 {[%emt 0:01:03]} 5. g3 {[%emt 0:00:06]} b6 {[%emt 0:01:12]} 6. Bg2 {[%emt 0:01:03]} Bb7 {[%emt 0:03:22]} 7. O-O {[%emt 0:03:32]} O-O {[%emt 0:05:18]} 8. e5 {[%emt 0:01:57]} Nfd7 {[%emt 0:01:13]} 9. Re1 {[%emt 0:00:15]} c5 {[%emt 0:01:17]} 10. h4 {[%emt 0:01:06]} Qc7 {[%emt 0:04:24]} 11. Nf1 {[%emt 0:00:32]} Nc6 {[%emt 0:04:20]} 12. Bf4 {[%emt 0:00:13]} b5 {[%emt 0:01:56]} 13. h5 {[%emt 0:03:11]} Rfe8 {[%emt 0:01:33]} 14. N1h2 {[%emt 0:01:17]} Qb6 {[%emt 0:03:24]} 15. h6 {[%emt 0:06:59]} g6 {[%emt 0:00:16]} 16. Qd2 {[%emt 0:03:41]} c4 {[%emt 0:13:34]} 17. Bg5 {[%emt 0:06:02]} Bf8 {[%emt 0:00:25]} 18. d4 {[%emt 0:01:51]} c3 {[%emt 0:02:18]} 19. Qxc3 {[%emt 0:01:17]} Rac8 {[%emt 0:00:42]} 20. Qd2 {[%emt 0:01:51]} Na5 {[%emt 0:00:47]} 21. Bh4 {[%emt 0:02:50]} Qc7 {[%emt 0:13:19]} 22. Qf4 {[%emt 0:07:47]} Qxc2 {[%emt 0:04:57]} 23. Bh3 {[%emt 0:00:21]} Qc7 {[%emt 0:20:20]} 24. Ng5 {[%emt 0:03:17]} Re7 {[%emt 0:07:58]} 25. Nxh7 {[%emt 0:00:29]} Kxh7 {[%emt 0:00:28]} 26. Bxe7 {[%emt 0:00:10]} Bxe7 {[%emt 0:02:03]} 27. Qxf7+ {[%emt 0:00:17]} 1-0

[Event "Polish Youth Ekstraliga 2022"]
[Site "Lublin"]
[Date "2022.06.28"]
[Round "4.21"]
[White "Przybylski, Jan"]
[Black "Raczek, Krzysztof"]
[Result "0-1"]
[ECO "B43"]
[WhiteElo "1694"]
[BlackElo "2114"]
[Annotator "RC"]
[PlyCount "60"]
[EventDate "2022.06.24"]
[EventType "team-tourn"]
[EventCountry "POL"]
[SourceTitle "playchess.com"]
[Source "ChessBase"]
[SourceQuality "1"]
[TimeControl "40/5400+30:1800+30"]

1. e4 {[%emt 0:00:03]} c5 {[%emt 0:00:04]} 2. Nf3 {[%emt 0:00:03]} e6 {[%emt 0:00:03]} 3. d4 {[%emt 0:00:07]} cxd4 {[%emt 0:00:01]} 4. Nxd4 {[%emt 0:00:12]} a6 {[%emt 0:00:03]} 5. Nc3 {[%emt 0:00:32]} b5 {[%emt 0:00:01]} 6. Bd3 {[%emt 0:01:06]} Qb6 {[%emt 0:00:11]} 7. Nb3 {[%emt 0:02:02]} Qc7 {[%emt 0:00:01]} 8. O-O {[%emt 0:01:01]} Bb7 {[%emt 0:01:59]} 9. f4 {[%emt 0:05:12]} b4 {[%emt 0:06:21]} 10. Ne2 {[%emt 0:02:30]} Nf6 {[%emt 0:01:00]} 11. Ng3 {[%emt 0:07:06]} Qb6+ {[%emt 0:10:47]} 12. Kh1 {[%emt 0:01:43]} h5 {[%emt 0:00:01]} 13. Qf3 {[%emt 0:21:46]} h4 {[%emt 0:00:57]} 14. Ne2 {[%emt 0:05:25]} h3 {[%emt 0:00:34]} 15. Be3 {[%emt 0:02:50]} Qc7 {[%emt 0:00:16]} 16. c4 {[%emt 0:10:48]} hxg2+ {[%emt 0:02:15]} 17. Qxg2 {[%emt 0:01:39]} d6 {[%emt 0:03:06]} 18. Rac1 {[%emt 0:02:05]} Nbd7 {[%emt 0:00:21]} 19. Ned4 {[%emt 0:04:28]} Nc5 {[%emt 0:00:28]} 20. Nxc5 {[%emt 0:01:35]} dxc5 {[%emt 0:01:14]} 21. Nb3 {[%emt 0:00:59]} O-O-O {[%emt 0:01:21]} 22. Bc2 {[%emt 0:00:53]} Rh4 {[%emt 0:09:39]} 23. Nd2 {[%emt 0:09:45]} Bd6 {[%emt 0:03:09]} 24. Qg3 {[%emt 0:03:30]} Rdh8 {[%emt 0:00:26]} 25. Rce1 {[%emt 0:12:39]} g5 {[%emt 0:03:23]} 26. Qxg5 {[%emt 0:00:37]} Rxh2+ {[%emt 0:01:34]} 27. Kg1 {[%emt 0:00:09]} R2h6 {[%emt 0:00:18]} 28. e5 {[%emt 0:01:21]} Rh1+ {[%emt 0:00:09]} 29. Kf2 {[%emt 0:00:07]} R8h2+ {[%emt 0:00:02]} 30. Kg3 {[%emt 0:00:22]} Rg2# {[%emt 0:00:01]} 0-1

[Event "Polish Youth Ekstraliga 2022"]
[Site "Lublin"]
[Date "2022.06.28"]
[Round "4.22"]
[White "Grzebieniowski, Michal"]
[Black "Terkiewicz, Bruno"]
[Result "1-0"]
[ECO "E16"]
[WhiteElo "1635"]
[BlackElo "1320"]
[Annotator "NA RC"]
[PlyCount "85"]
[EventDate "2022.06.24"]
[EventType "team-tourn"]
[EventCountry "POL"]
[SourceTitle "playchess.com"]
[Source "ChessBase"]
[SourceQuality "1"]
[TimeControl "40/5400+30:1800+30"]

1. d4 {[%emt 0:00:01]} Nf6 {[%emt 0:00:01]} 2. c4 {[%emt 0:00:05]} e6 {[%emt 0:00:04]} 3. Nf3 {[%emt 0:00:06]} Bb4+ {[%emt 0:00:03]} 4. Bd2 {[%emt 0:00:06]} Qe7 {[%emt 0:00:04]} 5. Nc3 {[%emt 0:00:08]} Nc6 {[%emt 0:00:32]} 6. g3 {[%emt 0:04:13]} O-O {[%emt 0:02:13]} 7. Bg2 {[%emt 0:00:40]} d6 {[%emt 0:00:52]} 8. Qc2 {[%emt 0:00:26]} a5 {[%emt 0:01:26]} 9. O-O {[%emt 0:00:19]} e5 {[%emt 0:00:30]} 10. a3 {[%emt 0:03:29]} Bxc3 {[%emt 0:02:16]} 11. Bxc3 {[%emt 0:00:25]} a4 {[%emt 0:02:03]} 12. e3 {[%emt 0:04:02]} Re8 {[%emt 0:02:05]} 13. Nd2 {[%emt 0:02:57]} Bd7 {[%emt 0:03:16]} 14. Kh1 {[%emt 0:04:23]} h6 {[%emt 0:02:15]} 15. Rae1 {[%emt 0:06:20]} exd4 {[%emt 0:26:35]} 16. exd4 {[%emt 0:00:08]} Qxe1 {[%emt 0:00:05]} 17. Rxe1 {[%emt 0:00:04]} Rxe1+ {[%emt 0:00:06]} 18. Nf1 {[%emt 0:00:03]} Ree8 {[%emt 0:00:12]} 19. h3 {[%emt 0:02:49]} Na5 {[%emt 0:07:04]} 20. Ne3 {[%emt 0:00:21]} Nc6 {[%emt 0:17:11]} 21. Kh2 {[%emt 0:05:55]} Nd8 {[%emt 0:05:58]} 22. Qd3 {[%emt 0:10:21]} Rb8 {[%emt 0:04:53]} 23. d5 {[%emt 0:06:08]} b6 {[%emt 0:04:10]} 24. Qd4 {[%emt 0:01:36]} Nb7 {[%emt 0:01:38]} 25. Qh4 {[%emt 0:01:10]} Nh7 {[%emt 0:03:32]} 26. Ng4 {[%emt 0:02:36]} Bxg4 {[%emt 0:00:45]} 27. Qxg4 {[%emt 0:00:21]} f6 {[%emt 0:00:05]} 28. Qd7 {[%emt 0:02:00]} Rbc8 {[%emt 0:00:25]} 29. Qxa4 {[%emt 0:01:14]} Nc5 {[%emt 0:00:42]} 30. Qc2 {[%emt 0:00:26]} Ng5 {[%emt 0:00:29]} 31. Qg6 {[%emt 0:01:28]} Nge4 {[%emt 0:01:41]} 32. Bd4 {[%emt 0:00:09]} Kf8 {[%emt 0:01:00]} 33. b4 {[%emt 0:00:11]} Ra8 {[%emt 0:01:11]} 34. bxc5 {[%emt 0:01:04]} bxc5 {[%emt 0:00:16]} 35. Be3 {[%emt 0:00:40]} Ng5 {[%emt 0:00:09]} 36. h4 {[%emt 0:01:02]} Nf7 {[%emt 0:00:07]} 37. Bh3 {[%emt 0:02:21]} Rxa3 {[%emt 0:00:35]} 38. Be6 {[%emt 0:01:24]} Ne5 {[%emt 0:00:56]} 39. Qh7 {[%emt 0:00:53]} Rea8 {[%emt 0:00:56]} 40. Qg8+ {[%emt 0:00:00]} Ke7 41. Qxg7+ {[%emt 0:00:38]} Ke8 {[%emt 0:00:18]} 42. Bxh6 {[%emt 0:00:24]} Nf3+ {[%emt 0:00:29]} 43. Kg2 {[%emt 0:00:14]} 1-0

[Event "Polish Youth Ekstraliga 2022"]
[Site "Lublin"]
[Date "2022.06.28"]
[Round "4.23"]
[White "Bukala, Weronika"]
[Black "Siekanska, Maria"]
[Result "1-0"]
[ECO "B50"]
[WhiteElo "1827"]
[BlackElo "1964"]
[Annotator "NA RC"]
[PlyCount "121"]
[EventDate "2022.06.24"]
[EventType "team-tourn"]
[EventCountry "POL"]
[SourceTitle "playchess.com"]
[Source "ChessBase"]
[SourceQuality "1"]
[TimeControl "40/5400+30:1800+30"]

1. e4 {[%emt 0:00:45]} c5 {[%emt 0:00:02]} 2. Nf3 {[%emt 0:00:44]} d6 {[%emt 0:00:09]} 3. c3 {[%emt 0:00:10]} Nf6 {[%emt 0:00:30]} 4. h3 {[%emt 0:00:22]} e6 {[%emt 0:05:23]} 5. Bd3 {[%emt 0:01:17]} Be7 {[%emt 0:02:16]} 6. O-O {[%emt 0:00:13]} O-O {[%emt 0:00:54]} 7. Bc2 {[%emt 0:01:21]} b6 {[%emt 0:01:19]} 8. d4 {[%emt 0:03:50]} Bb7 {[%emt 0:01:12]} 9. Re1 {[%emt 0:01:39]} Nbd7 {[%emt 0:02:53]} 10. e5 {[%emt 0:08:25]} Nd5 {[%emt 0:07:14]} ({But not} 10... dxe5 11. dxe5 Ne8 12. Qe2 $16 (12. Qd3 f5 $16)) 11. a3 {[%emt 0:16:12]} cxd4 {[%emt 0:05:33]} 12. cxd4 {[%emt 0:00:52]} Rc8 {[%emt 0:00:37]} 13. Bd2 {[%emt 0:07:03]} Qc7 {[%emt 0:05:09]} 14. Nc3 {[%emt 0:00:53]} dxe5 {[%emt 0:01:12]} 15. dxe5 {[%emt 0:00:44]} Rfd8 {[%emt 0:00:40]} 16. Qe2 {[%emt 0:08:25]} Nxc3 {[%emt 0:02:37]} 17. Bxc3 {[%emt 0:00:34]} Nc5 {[%emt 0:06:02]} 18. Nd4 {[%emt 0:01:16]} Qd7 {[%emt 0:06:24]} 19. Rad1 {[%emt 0:03:58]} Na4 {[%emt 0:07:10]} ({Resist} 19... Qd5 20. f4 $16) (19... Ba6 $11 20. Qe3 (20. Qh5 g6 $11) 20... Qe8) 20. Qg4 {[%emt 0:15:26]} Nxc3 {[%emt 0:06:47]} 21. bxc3 {[%emt 0:00:01]} Qc7 {[%emt 0:04:23]} 22. Rd3 {[%emt 0:01:35]} Bf8 {[%emt 0:03:46]} 23. Red1 {[%emt 0:03:48]} Ba6 {[%emt 0:05:53]} ({Resist} 23... Qxe5 {[#]} 24. Nc6 $1 Bxc6 25. Rxd8 $16) 24. Re3 {[%emt 0:04:28]} Bc4 {[%emt 0:02:12]} 25. Qe4 {[%emt 0:02:02]} g6 {[%emt 0:00:32]} 26. h4 {[%emt 0:00:32]} Bxa3 {[%emt 0:02:15]} 27. h5 {[%emt 0:01:07]} Bf8 {[%emt 0:00:44]} 28. Qh4 {[%emt 0:03:55]} a5 {[%emt 0:02:48]} 29. Rh3 {[%emt 0:03:04]} Bg7 {[%emt 0:00:16]} 30. hxg6 hxg6 {[%emt 0:00:20]} 31. Bxg6 {[%emt 0:01:32]} Bd5 {[%emt 0:01:34]} 32. Bh7+ {[%emt 0:03:30]} Kf8 {[%emt 0:00:02]} 33. Re1 $16 {[%emt 0:00:45]} (33. f4 $18 {is more deadly.}) 33... Bxe5 {[%emt 0:05:10]} 34. Ree3 {[%emt 0:01:31]} Bf4 {[%emt 0:01:22]} 35. Rhg3 {[%emt 0:01:06]} Bxg3 {[%emt 0:00:43]} 36. Rxg3 {[%emt 0:00:06]} Ke8 {[%emt 0:00:50]} 37. Bd3 {[%emt 0:02:28]} Bc4 {[%emt 0:01:48]} 38. Bc2 {[%emt 0:01:12]} b5 {[%emt 0:01:30]} 39. Be4 {[%emt 0:01:25]} Rxd4 {[%emt 0:03:14]} 40. cxd4 {[%emt 0:00:00]} a4 {[%emt 0:00:00]} 41. Qf6 {[%emt 0:05:09]} Qxg3 {[%emt 0:13:13]} 42. fxg3 {[%emt 0:00:05]} a3 {[%emt 0:00:05]} 43. d5 {[%emt 0:01:05]} Bxd5 {[%emt 0:00:34]} 44. Bxd5 {[%emt 0:00:19]} exd5 {[%emt 0:00:11]} 45. Qe5+ {[%emt 0:00:18]} Kd7 {[%emt 0:00:51]} 46. Qxd5+ {[%emt 0:00:13]} Ke8 {[%emt 0:02:18]} 47. Qxb5+ {[%emt 0:00:23]} Kf8 {[%emt 0:01:54]} 48. Qb4+ {[%emt 0:00:07]} Ke8 {[%emt 0:00:05]} 49. Qxa3 {[%emt 0:00:13]} Rd8 {[%emt 0:01:51]} 50. Kf2 {[%emt 0:00:18]} Rd7 {[%emt 0:00:23]} 51. Kf3 {[%emt 0:00:17]} Re7 {[%emt 0:00:30]} 52. Kf4 {[%emt 0:00:26]} Re6 {[%emt 0:00:06]} 53. Kf5 {[%emt 0:03:41]} Rg6 {[%emt 0:00:50]} 54. Qa8+ {[%emt 0:05:12]} Ke7 {[%emt 0:00:19]} 55. Qb7+ {[%emt 0:01:44]} Kf8 {[%emt 0:00:24]} 56. Qb2 {[%emt 0:00:52]} Kg8 {[%emt 0:00:25]} 57. g4 {[%emt 0:00:33]} Re6 {[%emt 0:00:21]} 58. g5 {[%emt 0:00:57]} Rg6 {[%emt 0:02:04]} 59. Qf6 {[%emt 0:03:37]} Rg7 {[%emt 0:00:56]} 60. g6 {[%emt 0:02:34]} fxg6+ {[%emt 0:00:19]} 61. Qxg6 {[%emt 0:00:44]} 1-0

[Event "Polish Youth Ekstraliga 2022"]
[Site "Lublin"]
[Date "2022.06.28"]
[Round "4.25"]
[White "Poltorak, Sebastian"]
[Black "Baum, Jonasz"]
[Result "1/2-1/2"]
[ECO "A00"]
[WhiteElo "2322"]
[BlackElo "2409"]
[Annotator "TA"]
[PlyCount "88"]
[EventDate "2022.06.24"]
[EventType "team-tourn"]
[EventCountry "POL"]
[SourceTitle "playchess.com"]
[Source "ChessBase"]
[SourceQuality "1"]
[TimeControl "40/5400+30:1800+30"]

{[%evp 9,88,0,22,21,14,10,13,-6,0,0,12,7,0,0,30,0,0,0,8,-43,-23,-30,-32,-14,-14,-31,0,0,0,0,0,0,0,0,0,0,0,0,18,5,5,5,5,5,5,10,8,6,14,10,15,11,14,0,0,0,5,11,90,7,28,0,0,0,0,0,1,0,16,0,0,0,0,0,0,0,0,0,0,0,0]} 1. Nc3 {[%emt 0:00:26]} c5 {[%emt 0:04:55]} 2. e4 {[%emt 0:00:07]} d6 {[%emt 0:00:11]} 3. d4 {[%emt 0:00:09]} cxd4 {[%emt 0:00:09]} 4. Qxd4 {[%emt 0:00:04]} Nc6 {[%emt 0:00:15]} 5. Qd2 {[%emt 0:01:02]} g6 {[%emt 0:00:19]} 6. b3 {[%emt 0:00:05] B23: Closed Sicilian: Lines without g3.} Bh6 {[%emt 0:00:48]} 7. f4 {[%emt 0:00:05]} Nf6 {[%emt 0:00:57]} 8. Bb2 {[%emt 0:01:18]} e5 {[%emt 0:07:43]} 9. g3 {[%emt 0:02:53]} O-O {[%emt 0:01:10]} 10. O-O-O {[%emt 0:00:07]} Re8 {[%emt 0:09:24]} 11. Bg2 {[%emt 0:03:10]} Bg4 {[%emt 0:10:21]} 12. Bf3 {[%emt 0:13:22]} Bxf3 {[%emt 0:09:23]} 13. Nxf3 {[%emt 0:00:07]} exf4 {[%emt 0:00:06] [#]} 14. Rde1 $146 {[%emt 0:01:14]} (14. Rhe1 $1 $11) ({Predecessor:} 14. Rhe1 Ne5 15. Nd4 d5 16. exd5 Neg4 17. Rxe8+ Qxe8 18. gxf4 Ne4 19. Nxe4 Qxe4 20. Ne2 {1-0 (32) Lucas,A (2299)-Del Prado Rodriguez,X (2149) Barcelona 2021}) 14... Ne5 {[%emt 0:07:41]} (14... a5 $5 {[%cal Ra5a4]}) 15. Rhf1 {[%emt 0:13:00]} Nxf3 {[%emt 0:28:37]} 16. Rxf3 {[%emt 0:00:14]} d5 $1 {[%emt 0:00:28]} 17. Rd3 {[%emt 0:09:59][%cal Rc3d5]} Qa5 {[%emt 0:04:53][%cal Rf6e4]} (17... dxe4 $5 18. Nxe4 (18. Rxd8 $2 Rexd8 19. Nd5 Rxd5 $19) 18... Nxe4 19. Rxe4 (19. Rxd8 $2 Rexd8 20. Rxe4 Rxd2 $19) 19... Qc7 20. Rxe8+ Rxe8 $11) 18. e5 {[%emt 0:02:16]} d4 $1 {[%emt 0:05:10]} 19. Rxd4 {[%emt 0:02:07]} (19. exf6 {is interesting.} dxc3 20. Rxe8+ Rxe8 21. Bxc3 Qxa2 22. Rd7) 19... Rxe5 {[%emt 0:01:42]} 20. Rxe5 {[%emt 0:04:18]} Qxe5 {[%emt 0:00:01]} 21. gxf4 {[%emt 0:11:44]} Qe7 {[%emt 0:00:34]} 22. Nd5 {[%emt 0:17:59]} Nxd5 {[%emt 0:00:01]} 23. Rxd5 {[%emt 0:00:05]} Bg7 {[%emt 0:00:58]} 24. Rd7 {[%emt 0:01:01]} Bxb2+ $1 {[%emt 0:00:22]} 25. Kxb2 $11 {[%emt 0:00:03][%mdl 4096] Endgame KQR-KQR} Qf6+ {[%emt 0:00:09]} (25... Qe4 {seems wilder.} 26. f5 Qxf5 27. Rxb7 h5) 26. Qd4 {[%emt 0:01:45]} (26. Kb1 {with more complications.} Qc6 27. a4 Re8 28. Kb2) 26... Qxd4+ {[%emt 0:02:18]} 27. Rxd4 {[%emt 0:00:04] KR-KR} Kg7 {[%emt 0:00:39]} 28. Rd7 {[%emt 0:01:54]} Rb8 {[%emt 0:00:00]} 29. c4 {[%emt 0:00:28]} Kf6 {[%emt 0:00:27]} 30. b4 {[%emt 0:01:26]} Ke6 {[%emt 0:02:24]} 31. Rc7 {[%emt 0:00:04]} h6 $1 {[%emt 0:00:08]} 32. Kc3 {[%emt 0:02:18]} f6 {[%emt 0:02:35]} 33. c5 {[%emt 0:00:16]} Kf5 {[%emt 0:00:44]} (33... g5 $11 {remains equal.}) 34. Rf7 {[%emt 0:01:34]} (34. b5 $16) 34... a6 {[%emt 0:00:26]} 35. a4 {[%emt 0:02:05]} g5 {[%emt 0:00:52] The position is equal.} 36. fxg5 {[%emt 0:00:04]} hxg5 {[%emt 0:00:03]} 37. Kc4 {[%emt 0:00:30]} Ke6 {[%emt 0:00:19]} 38. Rg7 {[%emt 0:00:05]} b5+ {[%emt 0:01:08]} 39. Kb3 {[%emt 0:03:00] Black must now prevent Ra7.} Rh8 {[%emt 0:00:25]} 40. Ra7 {[%emt 0:00:00]} Rh3+ {[%emt 0:00:00]} 41. Kc2 {[%emt 0:04:08]} Rxh2+ {[%emt 0:01:30]} 42. Kc3 {[%emt 0:00:28]} Rh3+ {[%emt 0:09:36]} 43. Kd4 {[%emt 0:00:53]} Rh4+ {[%emt 0:02:32]} 44. Kc3 {[%emt 0:00:03]} Rh3+ {[%emt 0:07:44] Weighted Error Value: White=0.12 (very precise) /Black=0.07 (flawless)} 1/2-1/2

[Event "Polish Youth Ekstraliga 2022"]
[Site "Lublin"]
[Date "2022.06.28"]
[Round "4.26"]
[White "Janeczko, Jakub"]
[Black "Meers, Hubert"]
[Result "1/2-1/2"]
[ECO "B10"]
[WhiteElo "2087"]
[BlackElo "2013"]
[Annotator "RC"]
[PlyCount "51"]
[EventDate "2022.06.24"]
[EventType "team-tourn"]
[EventCountry "POL"]
[SourceTitle "playchess.com"]
[Source "ChessBase"]
[SourceQuality "1"]
[TimeControl "40/5400+30:1800+30"]

1. e4 {[%emt 0:00:07]} c6 {[%emt 0:00:03]} 2. Nf3 {[%emt 0:00:12]} d5 {[%emt 0:00:06]} 3. Nc3 {[%emt 0:00:03]} dxe4 {[%emt 0:00:53]} 4. Nxe4 {[%emt 0:00:12]} Nf6 {[%emt 0:00:02]} 5. Qe2 {[%emt 0:01:00]} Nxe4 {[%emt 0:00:12]} 6. Qxe4 {[%emt 0:00:02]} Qd5 {[%emt 0:00:01]} 7. Qh4 {[%emt 0:00:46]} Bf5 {[%emt 0:05:10]} 8. Bc4 {[%emt 0:01:53]} Qd6 {[%emt 0:05:21]} 9. d3 {[%emt 0:02:12]} e6 {[%emt 0:17:32]} 10. Bf4 {[%emt 0:15:20]} Qe7 {[%emt 0:02:37]} 11. Qg3 {[%emt 0:05:47]} Nd7 {[%emt 0:00:05]} 12. O-O {[%emt 0:05:49]} Nf6 {[%emt 0:04:40]} 13. Nd4 {[%emt 0:07:55]} Nh5 {[%emt 0:02:43]} 14. Qf3 {[%emt 0:02:00]} Nxf4 {[%emt 0:00:13]} 15. Qxf4 {[%emt 0:01:08]} Qd6 {[%emt 0:00:57]} 16. Qxd6 {[%emt 0:16:31]} Bxd6 {[%emt 0:00:02]} 17. Nxf5 {[%emt 0:00:24]} exf5 {[%emt 0:00:01]} 18. Rfe1+ {[%emt 0:00:24]} Kf8 {[%emt 0:00:02]} 19. d4 {[%emt 0:00:59]} g6 {[%emt 0:03:11]} 20. a4 {[%emt 0:00:46]} Kg7 {[%emt 0:06:32]} 21. Re3 {[%emt 0:06:51]} Rad8 {[%emt 0:05:25]} 22. Rae1 {[%emt 0:03:40]} Rd7 {[%emt 0:01:28]} 23. Re8 {[%emt 0:03:35]} Rd8 {[%emt 0:02:35]} 24. R8e3 {[%emt 0:00:24]} Rd7 {[%emt 0:00:07]} 25. Re8 {[%emt 0:00:04]} Rd8 {[%emt 0:00:26]} 26. R8e3 {[%emt 0:00:08]} 1/2-1/2